bitfinex/quotes_BTCUSD_20250414
["timestamp","ask_amount","ask_price","bid_price","bid_amount"]
[1744648038941,0.5708987,84132.0,84131.0,0.0127004]
[1744648039141,0.03426469,84132.0,84131.0,0.0127004]
[1744648039340,0.03426469,84132.0,84131.0,0.01507755]
[1744648039341,6.9e-07,84132.0,84131.0,0.01507755]
[1744648039540,6.9e-07,84132.0,84131.0,0.04141988]
[1744648039806,6.9e-07,84132.0,84131.0,0.03904273]
[1744648040640,0.011884,84141.0,84138.0,0.237703]
[1744648040769,0.00013784,84142.0,84140.0,0.237698]
[1744648041981,0.00113784,84142.0,84140.0,0.238698]
[1744648042391,0.00013784,84142.0,84140.0,0.237698]
[1744648042633,0.00013784,84142.0,84141.0,0.00237678]
[1744648042808,0.00013784,84142.0,84140.0,0.237698]
[1744648043379,0.011885,84135.0,84131.0,0.27393029]
[1744648043578,0.237719,84133.0,84131.0,0.0127004]
[1744648043784,0.011885,84137.0,84132.0,0.23772]
[1744648043981,0.249594,84137.0,84133.0,0.237717]
[1744648044190,0.249604,84134.0,84131.0,0.0127004]
[1744648044404,0.249594,84137.0,84131.0,0.0127004]
[1744648044733,0.011885,84135.0,84131.0,0.0127004]
[1744648044934,0.2496,84135.0,84132.0,0.013886]
[1744648045145,0.011885,84138.0,84133.0,0.011885]
[1744648045323,0.237696,84141.0,84138.0,0.011885]
[1744648045523,0.001,84137.0,84136.0,0.249594]
[1744648045734,0.001,84137.0,84134.0,0.2496]
[1744648045938,0.001,84137.0,84135.0,0.237712]
[1744648046214,0.237721,84132.0,84131.0,0.0147004]
[1744648046528,0.76647968,84132.0,84131.0,0.0147004]
[1744648046746,0.76647968,84132.0,84131.0,0.0127004]
[1744648047589,1.10747968,84132.0,84131.0,0.0127004]
[1744648047752,1.11659563,84132.0,84131.0,0.0127004]
[1744648048573,1.12834949,84132.0,84131.0,0.0127004]
[1744648048796,0.89062849,84132.0,84131.0,0.0127004]
[1744648050559,1.12834949,84132.0,84131.0,0.0127004]
[1744648050984,1.17784949,84132.0,84131.0,0.0127004]
[1744648051586,1.19998526,84132.0,84131.0,0.0127004]
[1744648052429,1.21106054,84132.0,84131.0,0.0127004]
[1744648052836,1.21006054,84132.0,84131.0,0.0127004]
[1744648053193,1.21306054,84132.0,84131.0,0.0127004]
[1744648053396,1.21006054,84132.0,84131.0,0.0127004]
[1744648053860,1.21206054,84132.0,84131.0,0.0127004]
[1744648055746,1.16256054,84132.0,84131.0,0.0127004]
[1744648056329,0.91308568,84132.0,84131.0,0.0127004]
[1744648056553,1.15080668,84132.0,84131.0,0.0127004]
[1744648057140,0.34,84128.0,84126.0,0.249623]
[1744648057357,0.011887,84124.0,84121.0,0.2500591]
[1744648057804,0.237749,84122.0,84121.0,0.0004221]
[1744648057997,0.27095805,84123.0,84121.0,0.0004221]
[1744648058215,0.25988477,84122.0,84121.0,0.0004221]
[1744648058469,0.38072631,84122.0,84121.0,0.0004221]
[1744648059365,0.39180159,84122.0,84121.0,0.0004221]
[1744648059618,0.15405259,84122.0,84121.0,0.0024221]
[1744648059762,0.03321105,84122.0,84121.0,0.2381741]
[1744648060121,0.27196005,84122.0,84121.0,0.0024221]
[1744648060510,0.39280159,84122.0,84121.0,0.0024221]
[1744648062268,0.39180159,84122.0,84121.0,0.0004221]
[1744648062493,0.39280159,84122.0,84121.0,0.0014221]
[1744648062886,0.39280159,84122.0,84121.0,0.0004221]
[1744648063170,0.39380159,84122.0,84121.0,0.0004221]
[1744648071307,0.39384431,84122.0,84121.0,0.0004221]
[1744648072472,0.80176145,84122.0,84121.0,0.0004221]
[1744648075603,1.23536145,84122.0,84121.0,0.0004221]
[1744648076308,0.237778,84112.0,84111.0,0.002]
[1744648076569,0.35861954,84112.0,84111.0,0.002]
[1744648076959,0.38079803,84112.0,84111.0,0.002]
[1744648077559,0.14302003,84112.0,84111.0,0.0024607]
[1744648077760,0.39187331,84112.0,84111.0,0.0024607]
[1744648078864,0.15409531,84112.0,84111.0,0.0024607]
[1744648079074,0.39187331,84112.0,84111.0,0.0024607]
[1744648082162,0.15409531,84112.0,84111.0,0.0024607]
[1744648082366,0.15409531,84112.0,84111.0,0.2402417]
[1744648082572,0.39187331,84112.0,84111.0,0.0024607]
[1744648082771,0.15409531,84112.0,84111.0,0.0024607]
[1744648082962,0.03325377,84112.0,84111.0,0.2402417]
[1744648084968,0.01107528,84112.0,84111.0,0.2402417]
[1744648085479,0.249631,84125.0,84121.0,0.237751]
[1744648085876,0.02223792,84124.0,84121.0,0.237751]
[1744648086107,0.02223792,84124.0,84122.0,0.237749]
[1744648086450,0.03335702,84123.0,84122.0,0.237749]
[1744648087223,0.237775,84113.0,84111.0,0.0024607]
[1744648087354,0.237778,84112.0,84111.0,0.0024607]
[1744648087558,0.02223792,84112.0,84111.0,0.0024607]
[1744648087761,0.03335702,84112.0,84111.0,0.0024607]
[1744648088420,0.39197656,84112.0,84111.0,0.0024607]
[1744648088759,0.39297656,84112.0,84111.0,0.0044607]
[1744648089021,1.1408937,84112.0,84111.0,0.0044607]
[1744648089618,1.1398937,84112.0,84111.0,0.0024607]
[1744648089907,1.17325447,84112.0,84111.0,0.0024607]
[1744648090111,2.38077447,84112.0,84107.0,5e-07]
[1744648090328,0.69863054,84108.0,84107.0,5e-07]
[1744648090517,0.77859131,84108.0,84107.0,5e-07]
[1744648090903,0.81194833,84108.0,84107.0,5e-07]
[1744648091070,0.81194833,84108.0,84087.0,0.000422]
[1744648091071,0.577809,84101.0,84087.0,0.000422]
[1744648091271,1.10656768,84101.0,84087.0,0.000422]
[1744648091473,1.1288056,84101.0,84088.0,0.237845]
[1744648091673,0.8909966,84101.0,84091.0,0.011891]
[1744648091897,0.8909966,84101.0,84098.0,0.01189]
[1744648092249,1.1318056,84101.0,84097.0,0.0004218]
[1744648092390,1.1429247,84101.0,84097.0,0.0004218]
[1744648092591,1.3203647,84101.0,84097.0,0.0004218]
[1744648092820,1.0825557,84101.0,84098.0,0.01189]
[1744648093029,0.7425557,84101.0,84098.0,0.01189]
[1744648093250,0.75155744,84101.0,84097.0,0.0004218]
[1744648094090,0.75155744,84101.0,84099.0,0.237814]
[1744648094657,0.4442187,84101.0,84098.0,0.01189]
[1744648094853,0.4442187,84101.0,84100.0,0.2382339]
[1744648095589,0.4442187,84101.0,84100.0,0.0004219]
[1744648095793,0.4442187,84101.0,84100.0,0.2382339]
[1744648096000,0.03630156,84101.0,84100.0,0.2382339]
[1744648097011,0.01410052,84101.0,84100.0,0.25277475]
[1744648097255,0.01410052,84101.0,84100.0,0.30047475]
[1744648097453,5.2e-07,84101.0,84100.0,0.82320544]
[1744648097835,0.05595832,84113.0,84112.0,0.237778]
[1744648099047,0.05695832,84113.0,84112.0,0.25231885]
[1744648099451,3.2e-07,84113.0,84112.0,0.37316039]
[1744648101870,3.2e-07,84113.0,84112.0,0.71316039]
[1744648102634,0.40791714,84144.0,84143.0,0.23769]
[1744648102840,0.0008442,84155.0,84153.0,0.237661]
[1744648103059,0.00130405,84155.0,84153.0,0.237661]
[1744648103720,0.00130405,84155.0,84146.0,0.011884]
[1744648103721,0.011883,84149.0,84144.0,0.011884]
[1744648103999,0.011883,84149.0,84142.0,0.237693]
[1744648104000,0.35851554,84149.0,84145.0,0.249566]
[1744648104223,0.37039854,84149.0,84145.0,0.249566]
[1744648104423,0.12084154,84149.0,84147.0,0.237678]
[1744648104872,0.00130405,84155.0,84154.0,0.237659]
[1744648105023,0.00230405,84155.0,84154.0,0.237659]
[1744648105240,0.00130405,84155.0,84154.0,0.237659]
[1744648105869,0.00130405,84155.0,84149.0,0.011883]
[1744648105870,0.249554,84150.0,84130.0,0.557762]
[1744648106040,0.011883,84151.0,84147.0,0.25156]
[1744648106269,0.249551,84151.0,84147.0,0.25156]
[1744648106467,0.249551,84151.0,84148.0,0.011883]
[1744648106702,0.249545,84153.0,84148.0,0.249558]
[1744648106901,0.249545,84153.0,84144.0,0.237686]
[1744648106902,0.249559,84148.0,84144.0,0.24957]
[1744648107110,0.12084154,84150.0,84148.0,0.237675]
[1744648107452,0.00130405,84155.0,84154.0,0.237659]
[1744648108696,0.00230405,84155.0,84154.0,0.237659]
[1744648109965,0.00130405,84155.0,84154.0,0.237659]
[1744648110390,0.40876114,84166.0,84165.0,0.237628]
[1744648110391,0.000844,84166.0,84165.0,0.237628]
[1744648110739,0.00098192,84166.0,84165.0,0.237628]
[1744648111951,0.00198192,84166.0,84165.0,0.242628]
[1744648113763,0.23960692,84166.0,84165.0,0.005]
[1744648113955,0.00198192,84166.0,84165.0,0.005]
[1744648114409,0.23960692,84166.0,84165.0,0.005]
[1744648114585,0.00198192,84166.0,84165.0,0.005]
[1744648114787,0.00198192,84166.0,84165.0,0.242628]
[1744648115044,0.00198192,84166.0,84165.0,0.005]
[1744648115192,0.36044846,84166.0,84165.0,0.005]
[1744648115720,0.7683656,84166.0,84165.0,0.005]
[1744648116137,0.8148656,84166.0,84165.0,0.005]
[1744648116352,0.5772406,84166.0,84165.0,0.005]
[1744648116567,0.5772406,84166.0,84165.0,0.237628]
[1744648116568,0.5297406,84166.0,84165.0,0.237628]
[1744648116705,0.40889906,84166.0,84165.0,0.237628]
[1744648116900,0.40989906,84166.0,84160.0,0.249524]
[1744648117099,0.237631,84165.0,84160.0,0.249524]
[1744648117300,0.12084154,84164.0,84162.0,0.249516]
[1744648117500,0.37035454,84164.0,84159.0,0.237644]
[1744648117705,0.011881,84162.0,84155.0,0.011882]
[1744648117907,0.37036154,84161.0,84160.0,0.001]
[1744648118111,0.13272254,84161.0,84158.0,0.249529]
[1744648118348,0.12084154,84161.0,84159.0,0.237645]
[1744648118547,0.12084154,84161.0,84158.0,0.249529]
[1744648118755,0.237642,84160.0,84159.0,0.002]
[1744648119066,0.35848354,84160.0,84159.0,0.002]
[1744648119691,0.12084154,84160.0,84159.0,0.239645]
[1744648119916,0.12084154,84160.0,84159.0,0.237645]
[1744648120495,0.12084154,84160.0,84158.0,0.237647]
[1744648120657,0.12084154,84159.0,84158.0,0.237647]
[1744648121465,0.40889906,84166.0,84165.0,0.237628]
[1744648121664,0.5297406,84166.0,84165.0,0.237628]
[1744648122008,0.40889906,84166.0,84165.0,0.237628]
[1744648122424,0.64652506,84166.0,84160.0,0.011882]
[1744648122628,0.40889906,84166.0,84164.0,0.23763]
[1744648123303,0.011881,84163.0,84149.0,0.237671]
[1744648123504,0.011881,84161.0,84158.0,0.011882]
[1744648123708,0.011882,84160.0,84153.0,0.011883]
[1744648123907,0.13272354,84159.0,84152.0,0.011883]
[1744648124116,0.40889906,84166.0,84161.0,0.237639]
[1744648124117,0.02208444,84162.0,84161.0,0.237639]
[1744648124658,0.01104203,84165.0,84164.0,0.237631]
[1744648125431,0.00098192,84166.0,84164.0,0.237631]
[1744648126537,0.03312647,84165.0,84164.0,0.237631]
[1744648127013,0.01104203,84165.0,84164.0,0.237631]
[1744648127221,0.01104203,84165.0,84164.0,0.239631]
[1744648127448,0.01104203,84165.0,84164.0,0.237631]
[1744648127637,0.01104203,84165.0,84164.0,0.002]
[1744648128006,0.03319897,84165.0,84164.0,0.002]
[1744648128472,0.03319897,84165.0,84164.0,0.239631]
[1744648129293,0.01104203,84165.0,84164.0,0.239631]
[1744648130763,0.36951157,84165.0,84164.0,0.002]
[1744648133070,0.36951157,84165.0,84151.0,0.237666]
[1744648133071,0.237662,84153.0,84151.0,0.237666]
[1744648133242,0.011882,84155.0,84152.0,0.249548]
[1744648133554,0.237655,84156.0,84153.0,0.23766]
[1744648133773,0.237655,84156.0,84153.0,0.011883]
[1744648133774,0.37037854,84156.0,84153.0,0.011883]
[1744648133975,0.02292403,84155.0,84152.0,0.011883]
[1744648134101,0.26058303,84155.0,84152.0,0.011883]
[1744648134293,0.26158303,84155.0,84152.0,0.014883]
[1744648134526,0.02220826,84154.0,84152.0,0.014883]
[1744648134735,0.02220826,84154.0,84152.0,0.003]
[1744648134736,0.35850354,84153.0,84152.0,0.003]
[1744648134958,0.44165383,84153.0,84152.0,0.003]
[1744648135589,0.249562,84148.0,84145.0,0.011884]
[1744648135782,0.249566,84146.0,84141.0,0.011884]
[1744648136106,0.02220826,84145.0,84143.0,0.011884]
[1744648136280,0.03325029,84145.0,84143.0,0.011884]
[1744648136487,0.03325029,84145.0,84144.0,0.237687]
[1744648137257,0.011884,84143.0,84140.0,0.249582]
[1744648137458,0.011884,84143.0,84111.0,0.00908369]
[1744648137459,0.011885,84137.0,84121.0,0.045]
[1744648137664,0.237719,84133.0,84120.0,0.36575531]
[1744648137811,0.011886,84131.0,84127.0,0.011886]
[1744648138023,0.02220826,84130.0,84129.0,0.23773]
[1744648138181,0.02220826,84130.0,84121.0,0.24983006]
[1744648138182,0.23773,84129.0,84121.0,0.24983006]
[1744648138381,0.36961357,84129.0,84121.0,0.01207806]
[1744648138638,0.40390703,84129.0,84112.0,0.237776]
[1744648138812,1.1609579,84129.0,84101.0,0.237806]
[1744648139025,1.1609579,84129.0,84103.0,0.01189]
[1744648139219,1.1609579,84129.0,84104.0,0.01189]
[1744648139431,1.1609579,84129.0,84100.0,0.0004219]
[1744648139643,1.1609579,84129.0,84104.0,0.01189]
[1744648140051,1.1609579,84129.0,84128.0,0.0074215]
[1744648140256,1.19422352,84129.0,84128.0,0.0074215]
[1744648140514,0.674738,84126.0,84100.0,0.0004219]
[1744648140722,0.86209545,84126.0,84106.0,0.237793]
[1744648140918,0.86209545,84126.0,84118.0,0.0004215]
[1744648140919,0.62435745,84126.0,84118.0,0.0004215]
[1744648141152,0.59109183,84126.0,84124.0,0.237743]
[1744648141392,0.15409183,84126.0,84124.0,0.237743]
[1744648141638,0.15409183,84126.0,84124.0,0.237744]
[1744648141882,0.01104203,84126.0,84124.0,0.237744]
[1744648142543,0.01104203,84126.0,84124.0,0.23686279]
[1744648142949,0.01104203,84126.0,84125.0,0.00237716]
[1744648143196,8.1e-07,84129.0,84127.0,0.01454085]
[1744648143402,8.1e-07,84129.0,84128.0,0.25464963]
[1744648143614,8.1e-07,84129.0,84128.0,0.25227285]
[1744648143889,8.1e-07,84129.0,84128.0,0.71311439]
[1744648144028,0.01104203,84138.0,84137.0,0.237707]
[1744648144225,0.01113498,84138.0,84137.0,0.25224785]
[1744648144432,9.295e-05,84138.0,84137.0,0.25224785]
[1744648145165,9.5e-07,84138.0,84137.0,0.37308939]
[1744648145745,9.5e-07,84138.0,84137.0,0.25224785]
[1744648146869,0.00100095,84138.0,84137.0,0.25424785]
[1744648148376,0.00073607,84138.0,84137.0,0.25424785]
[1744648150731,0.00023607,84138.0,84137.0,0.25424785]
[1744648152777,0.00023607,84138.0,84137.0,0.239707]
[1744648154256,0.00023607,84138.0,84137.0,0.002]
[1744648155463,0.40791714,84144.0,84143.0,0.23769]
[1744648156920,0.40991714,84144.0,84143.0,0.23869]
[1744648157523,0.64760414,84144.0,84143.0,0.001]
[1744648157908,0.40991714,84144.0,84143.0,0.001]
[1744648158114,0.40991714,84144.0,84143.0,0.23869]
[1744648158493,0.002,84144.0,84143.0,0.23869]
[1744648158897,0.40791714,84163.0,84162.0,0.237636]
[1744648159210,0.002,84169.0,84165.0,0.237628]
[1744648159580,0.12168554,84166.0,84165.0,0.237628]
[1744648159757,0.37119154,84166.0,84163.0,0.237633]
[1744648160018,0.37119454,84166.0,84163.0,0.249514]
[1744648160182,0.12182354,84166.0,84164.0,0.237628]
[1744648160383,0.01106813,84165.0,84164.0,0.237628]
[1744648160590,0.01106813,84165.0,84161.0,0.249518]
[1744648160738,0.02294913,84165.0,84162.0,0.249515]
[1744648160949,0.26057713,84165.0,84162.0,0.237635]
[1744648161299,0.01106813,84165.0,84163.0,0.237633]
[1744648161473,0.01106813,84165.0,84164.0,0.237631]
[1744648161674,0.12782354,84166.0,84165.0,0.237628]
[1744648162277,0.237631,84164.0,84161.0,0.249517]
[1744648162674,0.24869913,84164.0,84161.0,0.249517]
[1744648163003,0.26058013,84164.0,84157.0,0.237649]
[1744648163204,0.011882,84159.0,84153.0,0.011883]
[1744648163403,0.237653,84157.0,84153.0,0.249542]
[1744648163584,0.01106813,84160.0,84159.0,0.237644]
[1744648164598,0.005,84164.0,84159.0,0.237644]
[1744648164599,0.005,84164.0,84163.0,0.237634]
[1744648165403,0.02294813,84168.0,84165.0,0.237628]
[1744648165609,0.12182354,84166.0,84165.0,0.237628]
[1744648166744,0.12582354,84166.0,84165.0,0.238628]
[1744648167178,0.004982,84166.0,84165.0,0.238628]
[1744648168943,0.004982,84166.0,84165.0,0.001]
[1744648168944,0.12582354,84166.0,84165.0,0.001]
[1744648169542,0.13689167,84166.0,84165.0,0.001]
[1744648170524,0.01605013,84166.0,84165.0,0.238628]
[1744648175721,0.004982,84166.0,84165.0,0.238628]
[1744648175936,0.004982,84166.0,84165.0,0.001]
[1744648176128,0.011882,84158.0,84148.0,0.011883]
[1744648176346,0.37037554,84157.0,84152.0,0.237664]
[1744648176525,0.011882,84154.0,84151.0,0.249548]
[1744648176700,0.249545,84153.0,84151.0,0.237667]
[1744648176898,0.02298651,84152.0,84146.0,0.249564]
[1744648177098,0.01110351,84152.0,84150.0,0.23767]
[1744648177653,0.011883,84147.0,84144.0,0.249569]
[1744648177859,0.011883,84148.0,84145.0,0.011884]
[1744648178029,0.02220543,84147.0,84146.0,0.249566]
[1744648178690,0.03408843,84147.0,84143.0,0.23769]
[1744648178912,0.03408843,84147.0,84143.0,0.249574]
[1744648179115,0.02220543,84146.0,84144.0,0.237686]
[1744648179636,0.02220543,84145.0,84144.0,0.237686]
[1744648180041,0.02220543,84145.0,84143.0,0.249574]
[1744648180304,0.01110171,84144.0,84143.0,0.249574]
[1744648180423,0.03330714,84144.0,84143.0,0.249574]
[1744648181457,0.03330635,84144.0,84143.0,0.249574]
[1744648181669,0.24958,84142.0,84135.0,0.237712]
[1744648181870,0.011884,84140.0,84136.0,0.237708]
[1744648182072,0.02220543,84139.0,84138.0,0.249586]
[1744648182633,0.03330635,84139.0,84138.0,0.249586]
[1744648183152,0.03330635,84139.0,84138.0,0.25204585]
[1744648184709,0.03330635,84139.0,84138.0,0.00245985]
[1744648184919,0.03330635,84139.0,84138.0,0.24016385]
[1744648191780,0.01110092,84139.0,84138.0,0.24016385]
[1744648192197,9.2e-07,84139.0,84138.0,0.24016385]
[1744648192566,0.40791714,84148.0,84147.0,0.237679]
[1744648193569,9.7e-07,84148.0,84147.0,0.25221985]
[1744648193844,0.000844,84166.0,84165.0,0.237628]
[1744648195112,0.000982,84166.0,84165.0,0.237628]
[1744648195315,0.005982,84166.0,84165.0,0.238628]
[1744648195536,0.000982,84166.0,84165.0,0.237628]
[1744648195738,0.002982,84166.0,84165.0,0.237628]
[1744648195946,0.000982,84166.0,84165.0,0.237628]
[1744648196262,0.002982,84166.0,84165.0,0.237628]
[1744648196661,0.000982,84166.0,84165.0,0.237628]
[1744648197876,0.001982,84166.0,84165.0,0.237628]
[1744648200234,0.011881,84163.0,84155.0,0.237655]
[1744648200430,0.001982,84166.0,84148.0,0.249559]
[1744648200431,0.011882,84156.0,84148.0,0.249559]
[1744648200634,0.011882,84156.0,84151.0,0.011883]
[1744648200869,0.011882,84159.0,84154.0,0.249541]
[1744648201081,0.0468,84165.0,84162.0,0.011881]
[1744648201204,0.249548,84153.0,84149.0,0.249556]
[1744648201408,0.012863,84166.0,84159.0,0.237645]
[1744648201630,0.000982,84166.0,84161.0,0.011881]
[1744648201832,0.000982,84166.0,84164.0,0.237631]
[1744648202060,0.000982,84166.0,84165.0,0.237628]
[1744648203396,0.237663,84153.0,84131.0,0.0476]
[1744648203605,0.011882,84159.0,84154.0,0.24954]
[1744648203758,0.12084154,84159.0,84156.0,0.011882]
[1744648203962,0.12084154,84159.0,84148.0,0.011883]
[1744648203963,0.24953,84158.0,84151.0,0.237667]
[1744648204162,0.24953,84158.0,84153.0,0.237662]
[1744648204389,0.01936986,84157.0,84154.0,0.011882]
[1744648204801,0.011883,84147.0,84142.0,0.013884]
[1744648204993,0.011884,84145.0,84142.0,0.002]
[1744648205198,0.011884,84145.0,84142.0,0.013884]
[1744648205443,0.011883,84150.0,84142.0,0.013884]
[1744648205444,0.00830163,84157.0,84145.0,0.249566]
[1744648205738,0.011882,84156.0,84151.0,0.011883]
[1744648205935,0.249542,84154.0,84153.0,0.003]
[1744648206079,0.37038354,84154.0,84153.0,0.003]
[1744648206292,0.4913056,84154.0,84153.0,0.003]
[1744648206550,1.12981394,84154.0,84153.0,0.003]
[1744648206753,0.011887,84124.0,84118.0,0.0123095]
[1744648207053,0.0477,84130.0,84128.0,0.237732]
[1744648207282,0.0452,84137.0,84136.0,0.23771]
[1744648207486,0.0929,84144.0,84138.0,0.011885]
[1744648207693,0.12084154,84143.0,84141.0,0.237696]
[1744648207822,0.15131196,84143.0,84139.0,0.237701]
[1744648208021,0.237696,84141.0,84137.0,0.237707]
[1744648208263,0.237699,84140.0,84139.0,0.00045985]
[1744648208468,0.25985888,84140.0,84139.0,0.00045985]
[1744648208669,0.27093871,84140.0,84139.0,0.00045985]
[1744648208897,0.03323971,84140.0,84139.0,0.00045985]
[1744648209017,0.04155025,84140.0,84139.0,0.00045985]
[1744648209461,0.04155025,84140.0,84139.0,0.00145985]
[1744648209662,0.04255025,84140.0,84139.0,0.00145985]
[1744648210173,0.02039037,84140.0,84139.0,0.00145985]
[1744648210553,0.00931054,84140.0,84139.0,0.00145985]
[1744648211206,0.02214547,84150.0,84149.0,0.237673]
[1744648211444,0.00831054,84156.0,84155.0,0.237656]
[1744648212163,0.00831054,84165.0,84164.0,0.237631]
[1744648212614,0.01938603,84165.0,84164.0,0.237631]
[1744648213282,0.01107549,84165.0,84164.0,0.237631]
[1744648213491,0.01307549,84165.0,84164.0,0.237631]
[1744648213952,0.01107549,84165.0,84164.0,0.237631]
[1744648214156,0.002,84169.0,84164.0,0.237631]
[1744648214376,0.002,84169.0,84164.0,0.238631]
[1744648214584,0.002,84169.0,84164.0,0.240631]
[1744648215087,0.01188,84168.0,84164.0,0.003]
[1744648215237,0.238469,84166.0,84164.0,0.001]
[1744648215638,0.05616453,84165.0,84164.0,0.003]
[1744648215838,0.22460607,84165.0,84164.0,0.003]
[1744648216049,0.23290365,84165.0,84164.0,0.002]
[1744648216483,0.23290365,84165.0,84139.0,0.01234485]
[1744648216484,0.237699,84140.0,84139.0,0.00045985]
[1744648216703,0.237696,84141.0,84139.0,0.00045985]
[1744648216925,0.65124,84161.0,84144.0,0.011884]
[1744648216926,0.34,84156.0,84144.0,0.011884]
[1744648217203,0.237682,84146.0,84142.0,0.249575]
[1744648217419,0.237697,84141.0,84139.0,0.00045985]
[1744648217629,0.011883,84147.0,84142.0,0.249575]
[1744648217630,0.24874659,84145.0,84142.0,0.249575]
[1744648217909,0.01106159,84145.0,84144.0,0.237687]
[1744648219701,0.01106159,84145.0,84143.0,0.23769]
[1744648220319,0.01106159,84144.0,84143.0,0.23769]
[1744648220520,0.237697,84141.0,84139.0,0.00045985]
[1744648220880,0.01106159,84144.0,84143.0,0.23769]
[1744648221494,0.01206159,84144.0,84143.0,0.23769]
[1744648221697,0.01206159,84144.0,84143.0,0.37307239]
[1744648221896,5.9e-07,84144.0,84143.0,0.71307239]
[1744648222258,0.0471434,84172.0,84165.0,0.237628]
[1744648222259,0.00829723,84168.0,84165.0,0.237628]
[1744648222987,2.3e-07,84168.0,84167.0,0.25216285]
[1744648223189,0.0008434,84172.0,84168.0,0.01454085]
[1744648223473,0.00210936,84169.0,84168.0,0.0169165]
[1744648223674,7.6e-07,84175.0,84168.0,0.13775804]
[1744648224033,9.6e-07,84178.0,84177.0,0.25213485]
[1744648224231,9.6e-07,84178.0,84177.0,0.54893639]
[1744648226268,0.00100096,84178.0,84177.0,0.55193639]
[1744648226406,9.6e-07,84178.0,84177.0,0.54893639]
[1744648226607,9.6e-07,84178.0,84177.0,0.237594]
[1744648226831,0.00100096,84178.0,84177.0,0.241594]
[1744648227386,0.00100096,84178.0,84177.0,0.37697639]
[1744648227862,9.6e-07,84178.0,84177.0,0.71697639]
[1744648228208,9.6e-07,84178.0,84177.0,0.581594]
[1744648229124,0.0008436,84189.0,84185.0,0.237572]
[1744648229515,0.0008436,84189.0,84185.0,0.37295439]
[1744648230014,0.0008436,84189.0,84185.0,0.237572]
[1744648230532,0.0018446,84186.0,84185.0,0.240572]
[1744648230876,0.0018446,84186.0,84185.0,0.003]
[1744648231081,0.0018446,84186.0,84185.0,0.240572]
[1744648231304,0.0018446,84186.0,84185.0,0.004]
[1744648231963,0.12268614,84186.0,84185.0,0.004]
[1744648232168,0.51058614,84186.0,84185.0,0.004]
[1744648232367,0.51927942,84186.0,84185.0,0.004]
[1744648232717,0.51927942,84186.0,84185.0,0.003]
[1744648233092,0.51927942,84186.0,84130.0,0.3807845]
[1744648233093,0.011882,84159.0,84153.0,0.011883]
[1744648233321,0.0493,84161.0,84147.0,0.011883]
[1744648233605,0.0493,84161.0,84142.0,0.01203768]
[1744648233606,0.23769,84143.0,84142.0,0.01203768]
[1744648233803,0.23769,84143.0,84130.0,0.0004215]
[1744648233804,0.283124,84131.0,84130.0,0.0004215]
[1744648233918,0.40396554,84131.0,84130.0,0.0004215]
[1744648234280,0.16624154,84131.0,84130.0,0.0004215]
[1744648234467,0.4260283,84131.0,84130.0,0.0004215]
[1744648235222,0.7660283,84131.0,84130.0,0.0004215]
[1744648235424,0.77704792,84131.0,84130.0,0.0004215]
[1744648236063,0.78589256,84131.0,84130.0,0.0014215]
[1744648236462,0.78689256,84131.0,84130.0,0.0004215]
[1744648236683,0.78889256,84131.0,84130.0,0.0004215]
[1744648236921,0.78789256,84131.0,84130.0,0.0004215]
[1744648237197,0.78889256,84131.0,84130.0,0.0004215]
[1744648237817,0.85560811,84131.0,84130.0,5e-07]
[1744648238035,0.577758,84119.0,84118.0,0.0004215]
[1744648238199,0.92339954,84119.0,84118.0,0.0004215]
[1744648238376,0.93441916,84119.0,84118.0,0.0004215]
[1744648238779,0.95648192,84119.0,84118.0,0.0004215]
[1744648239387,0.98841696,84119.0,84118.0,0.0004215]
[1744648239807,0.98941696,84119.0,84118.0,0.0014215]
[1744648240044,0.95848192,84119.0,84118.0,0.0004215]
[1744648240244,0.72472392,84119.0,84118.0,0.0004215]
[1744648240556,0.73072392,84119.0,84118.0,0.0014215]
[1744648240972,0.70866116,84119.0,84118.0,0.0014215]
[1744648242179,0.82938964,84119.0,84118.0,0.0014215]
[1744648242381,0.70866116,84119.0,84118.0,0.0014215]
[1744648243021,0.70866116,84119.0,84118.0,4.139e-05]
[1744648243429,0.73063444,84119.0,84118.0,4.139e-05]
[1744648243603,0.237766,84116.0,84115.0,0.0004215]
[1744648243786,0.35860754,84116.0,84115.0,0.0004215]
[1744648244121,0.38058082,84116.0,84115.0,0.0004215]
[1744648244547,0.39160044,84116.0,84115.0,0.0004215]
[1744648244928,0.39160044,84116.0,84115.0,0.00053086]
[1744648245130,0.15383444,84116.0,84115.0,0.00053086]
[1744648245325,0.15783444,84116.0,84115.0,0.00053086]
[1744648245492,0.13586116,84116.0,84115.0,0.00053086]
[1744648245891,0.13886116,84116.0,84115.0,0.00053086]
[1744648246755,0.47886116,84116.0,84115.0,0.00053086]
[1744648246961,0.52516116,84116.0,84115.0,0.00053086]
[1744648247135,0.54710777,84116.0,84115.0,0.00053086]
[1744648247932,0.57804281,84116.0,84115.0,8.6e-07]
[1744648248362,0.54710777,84116.0,84115.0,8.6e-07]
[1744648248585,0.54010777,84116.0,84115.0,8.6e-07]
[1744648248787,0.54610777,84116.0,84115.0,8.6e-07]
[1744648249104,0.56001418,84116.0,84115.0,8.6e-07]
[1744648249722,0.011888,84114.0,84111.0,0.00196086]
[1744648249919,0.69861954,84112.0,84111.0,0.00205381]
[1744648250125,0.73047256,84112.0,84111.0,0.00205381]
[1744648250532,0.69861954,84112.0,84111.0,0.00205381]
[1744648250690,0.47186116,84112.0,84111.0,0.00205381]
[1744648250887,0.13186116,84112.0,84111.0,0.23983481]
[1744648251087,0.47186116,84112.0,84111.0,0.00205381]
[1744648251922,0.47786116,84112.0,84111.0,0.00205381]
[1744648252244,0.46984154,84112.0,84111.0,0.00205381]
[1744648252457,0.12984154,84112.0,84111.0,0.23983481]
[1744648252650,0.12984154,84112.0,84111.0,0.00205381]
[1744648252851,0.36761954,84112.0,84111.0,0.00205381]
[1744648253696,0.12984154,84112.0,84111.0,0.00205381]
[1744648253897,0.36761954,84112.0,84111.0,0.00205381]
[1744648254117,0.12984154,84112.0,84111.0,0.00205381]
[1744648254323,0.006,84112.0,84111.0,0.23983481]
[1744648254646,0.3685261,84143.0,84116.0,0.011888]
[1744648254647,0.011887,84124.0,84116.0,0.011888]
[1744648254853,0.011887,84122.0,84118.0,0.237761]
[1744648255054,0.249632,84124.0,84118.0,0.237761]
[1744648255251,0.44334464,84131.0,84127.0,0.011886]
[1744648255497,0.12084154,84131.0,84129.0,0.23773]